bitfinex/quotes_SOLUSD_20220207
["timestamp","ask_amount","ask_price","bid_price","bid_amount"]
[1644269952506,40.22119119,117.48,117.44,3.1514396]
[1644269955406,53.24789119,117.48,117.44,3.1514396]
[1644269955605,53.24789119,117.48,117.36,24.6931]
[1644269955606,12.625389,117.47,117.36,24.6931]
[1644269955807,12.54,117.47,117.32,12.29]
[1644269956010,2.14682857,117.46,117.32,12.29]
[1644269956207,0.04291054,117.45,117.32,12.29]
[1644269956409,6.28573054,117.45,117.32,12.29]
[1644269956610,34.20495308,117.43,117.31,73.62754282]
[1644269957710,36.35178165,117.43,117.31,73.87754282]
[1644269957910,36.35178165,117.43,117.31,70.1843]
[1644269958311,36.60178165,117.43,117.31,70.1843]
[1644269958511,36.60178165,117.43,117.3,12.29]
[1644269958715,36.60178165,117.43,117.29,12.29]
[1644269958716,38.66411082,117.41,117.29,12.29]
[1644269958912,38.66411082,117.41,117.28,73.4549]
[1644269959114,38.91411082,117.41,117.28,73.4549]
[1644269959311,38.95702136,117.41,117.28,73.4549]
[1644269959515,38.70702136,117.41,117.27,58.8423]
[1644269959713,38.70702136,117.41,117.29,1.99636034]
[1644269959913,38.70702136,117.41,117.29,14.28636034]
[1644269960115,38.70702136,117.41,117.29,14.53636034]
[1644269960314,38.70702136,117.41,117.29,1.99636034]
[1644269960514,38.70702136,117.41,117.27,58.0824]
[1644269960515,12.7856,117.4,117.27,58.0824]
[1644269960713,45.4521148,117.39,117.27,58.0824]
[1644269960914,57.78502534,117.39,117.27,45.7924]
[1644269961113,57.78502534,117.39,117.27,47.78876034]
[1644269961313,57.78502534,117.39,117.27,60.07876034]
[1644269961514,57.78502534,117.39,117.27,58.0824]
[1644269961716,58.03502534,117.39,117.27,60.07876034]
[1644269961914,57.78502534,117.39,117.27,60.07876034]
[1644269962114,12.33291054,117.39,117.27,60.07876034]
[1644269962323,0.04291054,117.39,117.27,73.23293116]
[1644269962616,0.04291054,117.39,117.35,0.26523332]
[1644269962921,0.04291054,117.41,117.35,0.26523332]
[1644269963214,37.112,117.42,117.35,0.26523332]
[1644269964218,74.48394455,117.42,117.35,0.26523332]
[1644269967020,24.822,117.42,117.35,0.26523332]
[1644269967922,71.88881773,117.42,117.35,0.26523332]
[1644269968119,47.06681773,117.42,117.35,0.26523332]
[1644269971222,47.06681773,117.42,117.31,58.9501]
[1644269971719,47.06681773,117.42,117.31,60.9367615]
[1644269972121,23.5827,117.43,117.31,60.9367615]
[1644269972922,0.04413174,117.44,117.31,60.9367615]
[1644269973323,0.04413174,117.44,117.31,87.64375454]
[1644269974022,1.23558305,117.44,117.31,87.64375454]
[1644269975724,46.9796153,117.43,117.31,87.64375454]
[1644269975924,46.9796153,117.43,117.31,93.64375454]
[1644269976125,46.9796153,117.43,117.31,93.39375454]
[1644269976524,48.17106661,117.43,117.31,93.39375454]
[1644269976748,46.9796153,117.43,117.31,79.5173615]
[1644269976950,48.17106661,117.43,117.31,79.5173615]
[1644269977149,48.17106661,117.43,117.31,77.5307]
[1644269977351,48.17106661,117.43,117.31,77.7807]
[1644269978249,54.17106661,117.43,117.31,64.9501]
[1644269978448,40.52354678,117.41,117.31,58.9501]
[1644269979449,41.71499809,117.41,117.31,58.9501]
[1644269979649,41.71499809,117.41,117.31,46.6601]
[1644269980148,41.71499809,117.41,117.31,52.6601]
[1644269980350,41.71499809,117.41,117.31,6.0]
[1644269980549,41.71499809,117.41,117.28,55.7394615]
[1644269980749,41.75912983,117.41,117.28,55.7394615]
[1644269981152,47.75912983,117.41,117.28,55.7394615]
[1644269981652,1.19145131,117.4,117.28,55.7394615]
[1644269981853,35.32982323,117.39,117.29,24.3017]
[1644269982054,35.32982323,117.39,117.29,30.3017]
[1644269982251,35.32982323,117.39,117.29,30.5517]
[1644269985759,36.52127454,117.39,117.29,30.5517]
[1644269986663,36.52127454,117.39,117.29,6.25]
[1644269986860,36.52127454,117.39,117.29,0.25]
[1644269986861,42.52127454,117.39,117.29,0.25]
[1644269987061,42.52127454,117.39,117.29,6.0]
[1644269987662,42.52127454,117.39,117.27,42.8749]
[1644269987865,42.56540628,117.39,117.27,42.8749]
[1644269988463,1.19145131,117.38,117.27,42.8749]
[1644269988664,48.60280657,117.37,117.27,42.8749]
[1644269988864,48.60280657,117.37,117.27,6.0]
[1644269989064,48.60280657,117.37,117.26,7.47665364]
[1644269989065,54.60280657,117.37,117.26,7.47665364]
[1644269989266,54.60280657,117.37,117.26,0.26523332]
[1644269989267,2.14682857,117.36,117.26,0.26523332]
[1644269989465,36.10759155,117.35,117.26,6.26523332]
[1644269989864,36.35759155,117.35,117.26,6.26523332]
[1644269990069,42.35759155,117.35,117.26,6.26523332]
[1644269990264,42.35759155,117.35,117.26,0.26523332]
[1644269990866,44.50442012,117.35,117.26,0.26523332]
[1644269991067,56.79442012,117.35,117.26,0.26523332]
[1644269991869,54.64759155,117.35,117.26,0.26523332]
[1644269992067,12.7919,117.34,117.26,0.26523332]
[1644269992268,35.85417506,117.33,117.26,0.26523332]
[1644269993468,12.7919,117.34,117.26,0.26523332]
[1644269994069,37.0066,117.35,117.26,0.26523332]
[1644269994468,85.6548894,117.35,117.26,0.26523332]
[1644269995272,37.0066,117.35,117.26,0.26523332]
[1644269996275,0.04413174,117.37,117.26,0.26523332]
[1644269997371,34.59387891,117.37,117.26,0.26523332]
[1644269997571,12.7896,117.36,117.26,0.26523332]
[1644269997783,47.27248053,117.35,117.26,0.26523332]
[1644269997972,12.29,117.34,117.26,0.26523332]
[1644269998178,18.29,117.34,117.26,0.26523332]
[1644269998373,79.65084693,117.33,117.26,0.26523332]
[1644269998573,24.844022,117.32,117.26,0.26523332]
[1644269998777,58.87848759,117.31,117.26,0.26523332]
[1644269998979,12.29,117.3,117.26,0.26523332]
[1644269999176,18.29,117.3,117.26,0.26523332]
[1644269999374,20.68682857,117.3,117.26,0.26523332]
[1644269999574,18.54,117.3,117.26,0.26523332]
[1644270000177,18.29,117.3,117.26,0.26523332]
[1644270000583,12.29,117.3,117.26,0.26523332]
[1644270000780,37.0041,117.33,117.26,0.26523332]
[1644270000974,6.24282,117.32,117.26,0.26523332]
[1644270001175,49.83086023,117.32,117.26,0.26523332]
[1644270002478,43.58804023,117.32,117.26,0.26523332]
[1644270003177,49.58804023,117.32,117.26,0.26523332]
[1644270003379,55.87804023,117.32,117.26,0.26523332]
[1644270003578,61.87804023,117.32,117.26,0.26523332]
[1644270003776,40.53612012,117.3,117.26,0.26523332]
[1644270005677,46.53612012,117.3,117.26,0.26523332]
[1644270005880,40.53612012,117.3,117.26,0.26523332]
[1644270006579,46.53612012,117.3,117.26,0.26523332]
[1644270007078,40.53612012,117.3,117.26,0.26523332]
[1644270007479,12.7973,117.29,117.26,0.26523332]
[1644270007680,45.06212959,117.28,117.26,0.26523332]
[1644270008679,51.06212959,117.28,117.26,0.26523332]
[1644270009281,45.06212959,117.28,117.26,0.26523332]
[1644270010082,45.06212959,117.28,117.27,1.92709014]
[1644270010280,45.31212959,117.28,117.27,1.92709014]
[1644270010481,45.06212959,117.28,117.27,1.92709014]
[1644270010683,51.31212959,117.28,117.19,2.2089193]
[1644270010894,12.7999,117.27,117.19,2.2089193]
[1644270011087,51.34871192,117.26,117.19,2.2089193]
[1644270011285,53.74554049,117.26,117.19,2.2089193]
[1644270011484,57.59871192,117.26,117.19,2.2089193]
[1644270011687,35.66354755,117.24,117.19,2.2089193]
[1644270012086,6.25,117.24,117.19,2.2089193]
[1644270012686,6.0,117.24,117.19,2.2089193]
[1644270012884,6.0,117.24,117.19,1.93e-05]
[1644270012885,18.804,117.24,117.19,1.93e-05]
[1644270013088,19.054,117.24,117.19,1.93e-05]
[1644270013687,13.054,117.24,117.19,1.93e-05]
[1644270014286,25.344,117.24,117.19,1.93e-05]
[1644270015287,25.094,117.24,117.19,1.93e-05]
[1644270015488,25.344,117.24,117.19,1.93e-05]
[1644270015689,25.094,117.24,117.19,1.93e-05]
[1644270016519,12.29,117.24,117.19,1.93e-05]
[1644270018094,24.6427,117.26,117.19,1.93e-05]
[1644270018494,24.1427,117.26,117.19,1.93e-05]
[1644270020799,23.2236,117.3,117.19,1.93e-05]
[1644270020998,23.2236,117.3,117.19,14.24699909]
[1644270021198,24.0063,117.32,117.2,24.292]
[1644270021403,30.24912,117.32,117.2,24.292]
[1644270021598,40.48807338,117.31,117.21,1.95697979]
[1644270021796,40.48807338,117.31,117.21,2.20697979]
[1644270022496,30.24912,117.32,117.22,1.95697979]
[1644270022696,30.24912,117.32,117.22,2.20697979]
[1644270022898,6.24282,117.32,117.22,8.20697979]
[1644270023096,6.24282,117.32,117.23,1.95697979]
[1644270023297,6.24282,117.32,117.23,2.20697979]
[1644270023496,46.44544468,117.36,117.24,12.29]
[1644270023698,46.44544468,117.36,117.24,45.38867979]
[1644270023897,46.44544468,117.36,117.25,1.95697979]
[1644270024099,46.40131294,117.36,117.25,14.24697979]
[1644270024296,46.40131294,117.36,117.25,20.49697979]
[1644270024498,46.40131294,117.36,117.26,1.95697979]
[1644270024698,46.40131294,117.36,117.26,2.20697979]
[1644270025301,46.40131294,117.36,117.27,1.95697979]
[1644270025700,46.40131294,117.36,117.27,2.20697979]
[1644270026501,46.40131294,117.36,117.28,1.95697979]
[1644270026706,46.40131294,117.36,117.28,0.25]
[1644270026902,46.40131294,117.36,117.26,22.6917]
[1644270027302,46.40131294,117.36,117.27,1.95697979]
[1644270027701,46.65131294,117.36,117.27,1.95697979]
[1644270028203,46.65131294,117.36,117.27,2.20697979]
[1644270029210,46.65131294,117.36,117.27,0.25]
[1644270029705,46.65131294,117.36,117.26,22.9417]
[1644270029905,46.69544468,117.36,117.26,22.9417]
[1644270030108,46.69544468,117.36,117.26,24.89365313]
[1644270030307,0.29413174,117.36,117.26,24.89365313]
[1644270030506,0.04413174,117.36,117.26,24.89365313]
[1644270030706,0.04413174,117.38,117.26,24.89365313]
[1644270030908,0.04413174,117.38,117.27,36.0373]
[1644270031108,0.04413174,117.38,117.27,42.0373]
[1644270031307,47.22640251,117.38,117.28,1.95195313]
[1644270031507,47.18227077,117.38,117.28,24.56355313]
[1644270031711,47.47640251,117.38,117.28,30.81355313]
[1644270032612,53.47640251,117.38,117.28,30.81355313]
[1644270035534,53.47640251,117.38,117.28,28.8616]
[1644270035735,68.41203108,117.38,117.23,24.47392032]
[1644270035935,47.45584072,117.36,117.23,23.3829]
[1644270036236,44.79442883,117.34,117.23,23.3829]
[1644270036536,12.29,117.33,117.23,23.3829]
[1644270036840,37.6257199,117.32,117.23,23.3829]
[1644270037237,43.8757199,117.32,117.23,23.6329]
[1644270037636,37.8757199,117.32,117.23,23.6329]
[1644270037834,37.8757199,117.32,117.23,24.0950905]
[1644270038237,43.8757199,117.32,117.23,24.0950905]
[1644270038436,37.8757199,117.32,117.23,24.0950905]
[1644270040639,37.4135294,117.32,117.24,0.48095001]
[1644270041341,37.1635294,117.32,117.24,0.48095001]
[1644270043641,37.1635294,117.32,117.23,23.6329]
[1644270044541,37.4135294,117.32,117.23,23.6329]
[1644270044742,37.4135294,117.32,117.23,61.02302306]
[1644270044943,43.4135294,117.32,117.23,61.02302306]
[1644270045842,56.2080294,117.32,117.23,61.02302306]
[1644270046040,50.2080294,117.32,117.23,61.02302306]
[1644270046241,37.4135294,117.32,117.23,61.02302306]
[1644270047048,37.4135294,117.32,117.23,23.6329]
[1644270047242,58.09317797,117.32,117.19,1.21142032]
[1644270047442,28.0632,117.31,117.17,1.21142032]
[1644270047641,18.53282,117.3,117.17,1.21142032]
[1644270047842,4.264,117.29,117.16,1.21142032]
[1644270048044,50.73378752,117.28,117.17,43.63059813]
[1644270048242,57.22660752,117.28,117.17,43.63059813]
[1644270048443,63.22660752,117.28,117.17,44.84201845]
[1644270048848,63.22660752,117.28,117.17,43.63059813]
[1644270049047,63.22660752,117.28,117.17,44.84201845]
[1644270049847,56.98378752,117.28,117.17,45.09201845]
[1644270050544,56.98378752,117.28,117.17,43.88059813]
[1644270050745,56.98378752,117.28,117.17,45.09201845]
[1644270050944,56.98378752,117.28,117.17,43.88059813]
[1644270051446,56.98378752,117.28,117.17,45.09201845]
[1644270052050,12.7995,117.27,117.17,45.09201845]
[1644270052250,36.76572457,117.26,117.17,45.09201845]
[1644270052446,36.76572457,117.26,117.17,43.88059813]
[1644270052647,37.01572457,117.26,117.17,43.88059813]
[1644270052848,37.01572457,117.26,117.16,1.21142032]
[1644270053051,12.29,117.25,117.15,54.33992032]
[1644270053351,33.48852857,117.25,117.15,47.1285]
[1644270053947,40.89067776,117.24,117.15,47.1285]
[1644270054147,12.29,117.23,117.15,47.1285]
[1644270054348,25.3448,117.23,117.15,47.1285]
[1644270054550,31.3448,117.23,117.15,47.1285]
[1644270054753,31.3448,117.23,117.15,47.3785]
[1644270054952,47.0296454,117.22,117.15,47.1285]
[1644270055147,47.0296454,117.22,117.13,37.53063548]
[1644270055349,47.2796454,117.22,117.13,37.53063548]
[1644270055547,0.25,117.22,117.13,37.53063548]
[1644270055752,18.29,117.23,117.13,37.53063548]
[1644270055949,12.29,117.23,117.13,37.53063548]
[1644270056149,12.29,117.23,117.13,38.7420558]
[1644270056548,39.7381419,117.22,117.13,43.53063548]
[1644270056762,39.7381419,117.22,117.13,43.78063548]
[1644270057649,52.0281419,117.22,117.13,43.78063548]
[1644270058548,52.2781419,117.22,117.13,43.78063548]
[1644270058751,52.0281419,117.22,117.13,43.78063548]
[1644270059551,52.0281419,117.22,117.13,43.53063548]
[1644270059752,12.29,117.22,117.13,43.53063548]
[1644270059958,12.29,117.24,117.13,37.53063548]
[1644270060151,12.29,117.23,117.13,43.53063548]
[1644270060551,18.29,117.23,117.13,37.53063548]
[1644270060752,42.74538257,117.22,117.13,37.53063548]
[1644270060952,55.03538257,117.22,117.13,37.53063548]
[1644270061252,6.0,117.23,117.13,37.78063548]
[1644270061454,12.29,117.24,117.13,37.78063548]
[1644270061654,18.29,117.24,117.13,38.9920558]
[1644270062054,18.29,117.24,117.14,22.6901]
[1644270062253,12.29,117.24,117.15,27.22938371]
[1644270062455,47.3844,117.27,117.15,27.22938371]
[1644270062754,47.3844,117.27,117.16,24.4141]
[1644270062954,12.29,117.29,117.16,25.62552032]
[1644270063153,12.29,117.3,117.17,1.21142032]
[1644270063356,12.29,117.3,117.17,35.35687787]
[1644270063555,12.29,117.3,117.17,41.35687787]
[1644270063766,12.29,117.3,117.17,42.56829819]
[1644270063958,46.9487,117.32,117.18,22.8427]
[1644270064155,12.29,117.32,117.19,22.6724]
[1644270064356,16.554,117.35,117.2,41.94314132]
[1644270064555,12.29,117.35,117.22,35.10687787]
[1644270064756,12.29,117.35,117.24,29.65314132]
[1644270064960,12.33413174,117.37,117.24,29.65314132]
[1644270065156,6.24282,117.36,117.24,50.60854132]
[1644270065354,6.24282,117.36,117.25,1.95110351]
[1644270065557,12.33413174,117.39,117.25,1.95110351]
[1644270065756,0.04413174,117.37,117.25,31.64120351]
[1644270066056,0.04413174,117.37,117.26,35.10687787]
[1644270066257,0.04413174,117.37,117.26,50.09138138]
[1644270066457,0.04413174,117.37,117.27,1.95110351]
[1644270066658,0.04413174,117.4,117.27,66.14260351]
[1644270066858,0.04413174,117.4,117.27,66.39260351]
[1644270067057,0.04413174,117.4,117.28,1.95110351]
[1644270067258,0.04413174,117.4,117.29,29.65314132]
[1644270067659,0.04413174,117.4,117.29,37.85424483]
[1644270068760,0.04413174,117.4,117.29,31.85424483]
[1644270068958,12.29,117.39,117.29,31.85424483]
[1644270069158,53.72486248,117.39,117.29,31.85424483]
[1644270069558,59.72486248,117.39,117.29,31.85424483]
[1644270069961,61.87169105,117.39,117.29,31.85424483]
[1644270070160,55.82755931,117.39,117.29,29.90314132]
[1644270070360,61.82755931,117.39,117.29,29.90314132]
[1644270071960,61.82755931,117.39,117.29,35.90314132]
[1644270072864,61.82755931,117.39,117.37,1.2891664]
[1644270073165,74.86635931,117.39,117.37,0.0091664]
[1644270073364,74.86635931,117.39,117.23,25.97502032]
[1644270073562,74.86635931,117.39,117.23,24.7636]
[1644270073767,4.30513174,117.38,117.23,24.7636]
[1644270073961,12.29,117.37,117.23,24.7636]
[1644270074187,20.43682857,117.37,117.23,24.7636]
[1644270074363,40.21106354,117.36,117.24,36.6422771]
[1644270074566,12.29,117.35,117.24,36.6422771]
[1644270074763,12.54,117.35,117.24,36.6422771]
[1644270074963,18.54,117.35,117.24,36.8922771]
[1644270075766,12.29,117.35,117.24,36.8922771]
[1644270075968,18.54,117.35,117.24,36.8922771]
[1644270076567,18.54,117.35,117.24,36.6422771]
[1644270076767,58.90783647,117.35,117.24,36.6422771]
[1644270077668,18.54,117.35,117.24,36.6422771]
[1644270078070,12.54,117.35,117.24,36.8922771]
[1644270078968,18.54,117.35,117.24,36.8922771]
[1644270079770,18.29,117.35,117.25,1.95110351]
[1644270079968,12.29,117.37,117.25,1.95110351]
[1644270080169,18.29,117.37,117.25,8.20110351]
[1644270080367,6.31290174,117.38,117.25,8.20110351]
[1644270080572,44.95946524,117.37,117.26,30.0688456]
[1644270080770,63.24946524,117.37,117.26,28.36774209]
[1644270082195,63.49946524,117.37,117.26,28.36774209]
[1644270082895,57.49946524,117.37,117.26,28.36774209]
[1644270086694,63.49946524,117.37,117.26,28.36774209]
[1644270088695,57.49946524,117.37,117.26,28.36774209]
[1644270090700,63.49946524,117.37,117.26,28.36774209]
[1644270091902,57.49946524,117.37,117.26,28.36774209]
[1644270092803,57.49946524,117.37,117.26,28.11774209]
[1644270093106,64.69091655,117.37,117.26,28.11774209]
[1644270093403,79.15875967,117.37,117.26,28.11774209]
[1644270093606,1.19145131,117.36,117.26,28.11774209]
[1644270093808,48.71908743,117.35,117.26,28.11774209]
[1644270094207,54.96908743,117.35,117.26,28.11774209]
[1644270094807,57.115916,117.35,117.26,28.11774209]
[1644270095007,6.26877,117.34,117.26,28.11774209]
[1644270095209,47.41796256,117.33,117.26,28.11774209]
[1644270095609,53.66796256,117.33,117.26,28.11774209]
[1644270095810,65.95796256,117.33,117.26,28.11774209]
[1644270096011,65.95796256,117.33,117.22,25.14212032]
[1644270096209,6.26877,117.32,117.21,1.21142032]
[1644270096414,12.29,117.31,117.2,1.21142032]
[1644270096607,18.29,117.31,117.2,1.21142032]
[1644270096808,18.54,117.31,117.2,1.21142032]
[1644270097108,18.54,117.31,117.21,43.82771206]
[1644270098811,18.54,117.31,117.21,44.07771206]
[1644270101115,12.29,117.31,117.21,44.07771206]
[1644270103620,18.29,117.31,117.21,44.07771206]
[1644270105822,18.54,117.31,117.21,44.07771206]
[1644270106422,53.57587082,117.31,117.21,44.07771206]
[1644270108745,18.54,117.31,117.21,44.07771206]
[1644270109444,20.68682857,117.31,117.21,44.07771206]
[1644270110146,35.990491,117.3,117.21,44.07771206]
[1644270110348,0.25,117.3,117.21,44.07771206]
[1644270110748,6.25,117.31,117.21,44.07771206]
[1644270111551,0.25,117.31,117.21,44.07771206]
[1644270111750,6.25,117.31,117.21,44.07771206]
[1644270111950,6.0,117.31,117.21,44.07771206]
[1644270112152,6.25,117.31,117.21,44.07771206]
[1644270112350,0.25,117.31,117.21,44.07771206]
[1644270113251,71.96192329,117.32,117.21,44.07771206]
[1644270114452,31.3354,117.32,117.21,44.07771206]
[1644270115454,74.38953659,117.32,117.21,44.07771206]
[1644270117963,74.38953659,117.32,117.21,43.82771206]
[1644270118159,80.65830659,117.32,117.21,43.82771206]
[1644270118360,2.14682857,117.31,117.21,43.82771206]
[1644270118560,60.70128029,117.3,117.21,43.82771206]
[1644270118761,60.95128029,117.3,117.21,43.82771206]
[1644270118960,31.3376,117.3,117.21,43.82771206]
[1644270119562,31.3376,117.3,117.21,43.85171206]
[1644270119964,40.13312457,117.29,117.21,43.85171206]
[1644270120161,12.29,117.28,117.21,43.85171206]
[1644270120361,41.72110523,117.27,117.21,0.024]
[1644270120561,12.29,117.26,117.19,0.024]
[1644270120762,12.54,117.26,117.19,0.024]
[1644270120963,18.54,117.26,117.15,1.23542032]
[1644270121162,18.54,117.26,117.15,7.23542032]
[1644270121363,12.54,117.26,117.16,1.21142032]
[1644270121563,12.54,117.26,117.16,25.23992032]
[1644270121762,12.54,117.26,117.17,1.21142032]
[1644270121963,12.54,117.26,117.17,1.23542032]
[1644270122163,12.54,117.26,117.17,0.274]
[1644270122365,12.54,117.26,117.18,45.25272808]
[1644270122763,12.54,117.26,117.18,45.50272808]
[1644270123964,35.41011447,117.25,117.18,45.25272808]
[1644270124163,54.21281447,117.25,117.18,45.25272808]
[1644270124363,12.29,117.24,117.18,45.25272808]
[1644270124564,18.29,117.24,117.18,45.25272808]
[1644270124763,18.54,117.24,117.18,45.25272808]
[1644270125263,12.8048,117.23,117.16,0.024]
[1644270125467,12.29,117.22,117.15,1.21142032]
[1644270125666,12.29,117.22,117.13,0.024]
[1644270125667,20.43682857,117.22,117.13,0.024]
[1644270125864,18.54,117.22,117.13,0.024]
[1644270126264,18.54,117.22,117.13,40.43736767]
[1644270126864,18.54,117.22,117.13,64.25836767]
[1644270128570,6.0,117.22,117.13,66.20932732]
[1644270128768,12.8048,117.23,117.13,67.42074764]
[1644270128967,12.29,117.24,117.13,67.67074764]
[1644270129169,12.29,117.24,117.14,0.024]
[1644270129468,12.29,117.24,117.14,1.97495965]
[1644270129668,12.29,117.24,117.15,24.34665152]
[1644270130070,12.54,117.24,117.15,24.59665152]
[1644270130470,46.41180578,117.23,117.15,24.59665152]
[1644270131471,46.66180578,117.23,117.15,24.34665152]
[1644270131871,46.66180578,117.23,117.15,24.59665152]
[1644270132676,0.25,117.23,117.15,24.59665152]
[1644270133274,18.54,117.24,117.15,24.59665152]
[1644270133675,38.12058464,117.23,117.15,24.59665152]
[1644270133974,12.29,117.22,117.15,24.34665152]
[1644270134196,45.23170201,117.21,117.15,24.34665152]
[1644270134676,45.23170201,117.21,117.13,0.024]
[1644270134876,51.48170201,117.21,117.11,1.23542032]
[1644270135076,18.55877,117.2,117.11,0.024]
[1644270135279,18.80877,117.2,117.11,0.024]
[1644270135488,24.80877,117.2,117.11,0.024]
[1644270135681,47.01087969,117.19,117.11,43.55789979]
[1644270135880,12.29,117.18,117.11,43.55789979]
[1644270136080,35.88464096,117.17,117.11,43.55789979]
[1644270136281,36.13464096,117.17,117.1,0.96904572]
[1644270136482,42.13464096,117.17,117.1,0.96904572]
[1644270137282,42.13464096,117.17,117.1,43.42540786]
[1644270137485,6.25,117.17,117.1,43.42540786]
[1644270137787,0.25,117.17,117.1,43.42540786]
[1644270137982,12.54,117.18,117.1,43.42540786]
[1644270138182,18.54,117.18,117.1,43.42540786]
[1644270138585,37.37868613,117.17,117.1,43.42540786]
[1644270138784,37.62868613,117.17,117.1,43.42540786]
[1644270139583,43.62868613,117.17,117.1,43.42540786]
[1644270139784,56.44018613,117.17,117.1,0.96904572]
[1644270139985,12.29,117.16,117.1,0.96904572]
[1644270140186,6.26877,117.15,117.1,0.96904572]
[1644270140387,18.55877,117.15,117.1,0.96904572]
[1644270140684,24.80877,117.15,117.1,0.96904572]
[1644270140886,56.31952158,117.15,117.1,0.96904572]
[1644270141705,56.31952158,117.15,117.08,9.5950499]
[1644270141906,69.13532158,117.15,117.08,9.5710499]
[1644270142106,75.13532158,117.15,117.08,9.5710499]
[1644270142606,31.62457,117.15,117.08,35.6964183]
[1644270142808,25.1058,117.15,117.08,35.6964183]
[1644270143029,12.29,117.15,117.08,35.6964183]
[1644270143207,12.29,117.15,117.08,35.9464183]
[1644270143606,45.84987582,117.14,117.08,35.9464183]
[1644270143907,58.13987582,117.14,117.08,35.9464183]
[1644270144111,58.13987582,117.14,117.08,35.6964183]
[1644270144708,12.29,117.14,117.08,35.6964183]
[1644270145107,12.54,117.14,117.08,35.6964183]
[1644270148812,55.82589158,117.14,117.08,35.6964183]
[1644270149215,12.54,117.14,117.08,35.6964183]
[1644270149412,25.3547,117.14,117.08,9.5710499]
[1644270149612,31.3547,117.14,117.08,9.5710499]
[1644270150415,34.37742871,117.13,117.08,9.5710499]
[1644270150712,12.29,117.12,117.08,9.5710499]
[1644270150929,47.10536047,117.11,117.08,9.5710499]
[1644270151214,59.64536047,117.11,117.08,9.5710499]
[1644270152112,154.797811,117.1,117.08,9.5710499]
[1644270152715,35.78715306,117.09,117.08,9.5710499]
[1644270152916,188.07615706,117.09,117.08,9.5710499]
[1644270153814,208.57267206,117.09,117.08,9.5710499]
[1644270154413,220.86267206,117.09,117.08,9.5710499]
[1644270155014,226.86267206,117.09,117.08,9.5710499]
[1644270155415,220.86267206,117.09,117.08,9.5710499]
[1644270155615,226.86267206,117.09,117.08,9.5710499]
[1644270155815,245.67654906,117.09,117.07,0.89746261]
[1644270156117,197.903726,117.08,116.99,0.99059706]
[1644270156316,12.29,117.07,116.99,0.99059706]
[1644270156714,35.21695046,117.06,116.99,35.49531771]
[1644270156915,47.50695046,117.06,116.99,35.49531771]
[1644270157317,12.29,117.06,116.99,35.74531771]
[1644270157514,24.5392,117.1,116.99,35.74531771]
[1644270157515,4.272,117.15,116.99,35.74531771]
[1644270157715,4.269,117.17,117.0,120.05872808]
[1644270157914,4.269,117.18,117.0,115.78162445]
[1644270158114,12.29,117.16,117.02,1.21142032]
[1644270158315,39.34721239,117.17,117.03,30.33753681]
[1644270158518,39.34721239,117.17,117.05,34.50472065]
[1644270158718,39.34721239,117.17,117.07,18.04753681]
[1644270158918,39.34721239,117.17,117.07,30.33753681]
[1644270159116,39.34721239,117.17,117.07,30.58753681]
[1644270159517,39.34721239,117.17,117.09,34.50472065]
[1644270160818,39.59721239,117.17,117.09,34.50472065]
[1644270161819,39.59721239,117.17,117.09,64.72400626]
[1644270165028,39.59721239,117.17,117.09,64.47400626]
[1644270165826,39.59721239,117.17,117.09,76.76400626]
[1644270166227,39.59721239,117.17,117.09,77.01400626]
[1644270168030,0.25,117.17,117.09,77.01400626]
[1644270168230,13.0597,117.2,117.1,22.7604]
[1644270168432,5.45945131,117.22,117.1,35.0504]
[1644270168732,16.275161,117.21,117.1,76.5324308]
[1644270168932,39.7994701,117.2,117.11,18.04753681]
[1644270169434,39.7994701,117.2,117.13,34.50472065]
[1644270169631,12.536519,117.19,117.13,34.50472065]
[1644270169831,39.7994701,117.2,117.13,34.75472065]
[1644270170033,6.0,117.23,117.13,34.75472065]
[1644270170235,72.41805131,117.24,117.14,24.4041]
[1644270170633,71.4766,117.24,117.14,24.4041]
[1644270170833,71.2266,117.24,117.14,26.60622665]
[1644270171032,46.96388859,117.23,117.15,18.04753681]
[1644270171433,52.96388859,117.23,117.15,18.04753681]
[1644270171836,46.96388859,117.23,117.15,18.04753681]
[1644270172038,52.96388859,117.23,117.15,18.04753681]
[1644270172236,1.19145131,117.25,117.16,1.95212665]
[1644270172437,1.19145131,117.26,117.16,14.24212665]
[1644270172635,21.858182,117.25,117.17,23.2636]
[1644270172835,24.25815131,117.28,117.17,56.05315745]
[1644270173036,6.0,117.26,117.17,60.1010308]
[1644270173237,37.78107659,117.25,117.18,36.4568473]